[Event "Titled Tuesday Blitz January 17 Late 2023"]
[White "Pace, Christopher"]
[Black "Bouget, Alexandre"]
[WhiteFideId "2610167"]
[BlackFideId "681318"]
[WhiteElo "2053"]
[BlackElo "2267"]
[Result "0-1"]
[Round "08"]
[TimeControl "180+2"]
[Date "2023.01.17"]
[WhiteClock "0:00:09"]
[BlackClock "0:00:05"]

1. d4 {[%clk 0:03:00]}  d5 {[%clk 0:02:55]} 2. c4 {[%clk 0:02:55]}  e6 {[%clk 0:02:55]} 3. Nc3 {[%clk 0:02:55]}  c5 {[%clk 0:02:54]} 4. cxd5 {[%clk 0:02:53]}  cxd4 {[%clk 0:02:54]} 5. Qa4+ {[%clk 0:02:51]}  Bd7 {[%clk 0:02:53]} 6. Qxd4 {[%clk 0:02:51]}  exd5 {[%clk 0:02:54]} 7. Qxd5 {[%clk 0:02:50]}  Nc6 {[%clk 0:02:53]} 8. a3 {[%clk 0:02:49]}  Nf6 {[%clk 0:02:54]} 9. Qd1 {[%clk 0:02:49]}  Bc5 {[%clk 0:02:54]} 10. e3 {[%clk 0:02:48]}  Qe7 {[%clk 0:02:52]} 11. Nf3 {[%clk 0:02:47]}  O-O {[%clk 0:02:51]} 12. Be2 {[%clk 0:02:46]}  Rfd8 {[%clk 0:02:39]} 13. Qc2 {[%clk 0:02:46]}  Ne5 {[%clk 0:02:34]} 14. O-O {[%clk 0:02:43]}  Bd6 {[%clk 0:02:28]} 15. Rd1 {[%clk 0:02:28]}  Nfg4 {[%clk 0:02:27]} 16. h3 {[%clk 0:01:54]}  Nxf3+ {[%clk 0:02:21]} 17. Bxf3 {[%clk 0:01:55]}  Ne5 {[%clk 0:01:21]} 18. Be2 {[%clk 0:01:55]}  Bc6 {[%clk 0:01:20]} 19. Nd5 {[%clk 0:01:48]}  Qh4 {[%clk 0:01:13]} 20. e4 {[%clk 0:01:31]}  Rac8 {[%clk 0:01:06]} 21. Qd2 {[%clk 0:01:25]}  Qxe4 {[%clk 0:01:04]} 22. Ne3 {[%clk 0:00:18]}  h6 {[%clk 0:00:21]} 23. Bf1 {[%clk 0:00:17]}  Ng6 {[%clk 0:00:14]} 24. Qe2 {[%clk 0:00:12]}  Nf4 {[%clk 0:00:14]} 25. Qg4 {[%clk 0:00:11]}  Bd7 {[%clk 0:00:08]} 26. Qh4 {[%clk 0:00:05]}  Ne2+ {[%clk 0:00:06]} 27. Bxe2 {[%clk 0:00:03]}  Qxh4 {[%clk 0:00:07]} 28. Rxd6 {[%clk 0:00:02]}  Bc6 {[%clk 0:00:05]} 29. Rd7 {[%clk 0:00:02]}  Rxd7 {[%clk 0:00:05]} 30. Bf1 {[%clk 0:00:03]}  Qf6 {[%clk 0:00:02]} 31. Nf5 {[%clk 0:00:04]}  Qxf5 {[%clk 0:00:02]} 32. Be3 {[%clk 0:00:04]}  Qe6 {[%clk 0:00:02]} 33. Re1 {[%clk 0:00:05]}  Qf6 {[%clk 0:00:03]} 34. Bc5 {[%clk 0:00:05]}  Qg6 {[%clk 0:00:03]} 35. Be3 {[%clk 0:00:06]}  Qf6 {[%clk 0:00:04]} 36. g3 {[%clk 0:00:06]}  Qd8 {[%clk 0:00:05]} 37. Bf4 {[%clk 0:00:07]}  Re7 {[%clk 0:00:05]} 38. Re3 {[%clk 0:00:08]}  Rxe3 {[%clk 0:00:05]} 39. Bxe3 {[%clk 0:00:09]}  Qe7 {[%clk 0:00:05]} 0-1


[Site "https://www.chess.com"]

[Event "Titled Tuesday Blitz January 17 Late 2023"]
[White "rikchessmx"]
[Black "Malka, Samuel"]
[BlackFideId "20643675"]
[WhiteElo "2289"]
[BlackElo "2165"]
[Result "0-1"]
[Round "08"]
[TimeControl "180+2"]
[Date "2023.01.17"]
[WhiteClock "0:00:51"]
[BlackClock "0:00:24"]

1. e4 {[%clk 0:02:54]}  c5 {[%clk 0:03:00]} 2. Nf3 {[%clk 0:02:54]}  Nc6 {[%clk 0:02:59]} 3. d4 {[%clk 0:02:54]}  cxd4 {[%clk 0:03:00]} 4. Nxd4 {[%clk 0:02:55]}  Nf6 {[%clk 0:03:00]} 5. Nc3 {[%clk 0:02:54]}  e5 {[%clk 0:03:01]} 6. Nxc6 {[%clk 0:02:45]}  bxc6 {[%clk 0:03:02]} 7. Bd3 {[%clk 0:02:44]}  Bb4 {[%clk 0:02:49]} 8. O-O {[%clk 0:02:43]}  O-O {[%clk 0:02:50]} 9. Qf3 {[%clk 0:02:41]}  h6 {[%clk 0:02:39]} 10. Qg3 {[%clk 0:02:39]}  Kh8 {[%clk 0:02:39]} 11. Qxe5 {[%clk 0:02:39]}  Re8 {[%clk 0:02:33]} 12. Qf4 {[%clk 0:02:37]}  d6 {[%clk 0:02:20]} 13. a3 {[%clk 0:02:35]}  Bc5 {[%clk 0:02:20]} 14. Be3 {[%clk 0:02:34]}  Bxe3 {[%clk 0:02:19]} 15. Qxe3 {[%clk 0:02:33]}  Ng4 {[%clk 0:02:19]} 16. Qg3 {[%clk 0:02:31]}  Ne5 {[%clk 0:02:14]} 17. Rfd1 {[%clk 0:02:30]}  Qf6 {[%clk 0:02:09]} 18. f4 {[%clk 0:02:23]}  Nxd3 {[%clk 0:02:10]} 19. Rxd3 {[%clk 0:02:23]}  Rb8 {[%clk 0:02:10]} 20. b3 {[%clk 0:02:21]}  Ba6 {[%clk 0:02:10]} 21. Re3 {[%clk 0:02:12]}  d5 {[%clk 0:02:05]} 22. e5 {[%clk 0:02:02]}  Qf5 {[%clk 0:02:03]} 23. Na4 {[%clk 0:01:55]}  Qxc2 {[%clk 0:02:01]} 24. Rc3 {[%clk 0:01:55]}  Qd2 {[%clk 0:01:47]} 25. Nc5 {[%clk 0:01:44]}  d4 {[%clk 0:01:38]} 26. Rf3 {[%clk 0:01:32]}  Be2 {[%clk 0:01:28]} 27. Rf2 {[%clk 0:01:31]}  d3 {[%clk 0:01:29]} 28. b4 {[%clk 0:01:15]}  a5 {[%clk 0:01:28]} 29. f5 {[%clk 0:01:07]}  axb4 {[%clk 0:01:26]} 30. f6 {[%clk 0:01:06]}  g6 {[%clk 0:01:26]} 31. e6 {[%clk 0:01:06]}  Qc3 {[%clk 0:01:04]} 32. Rb1 {[%clk 0:00:59]}  bxa3 {[%clk 0:00:52]} 33. Qxb8 {[%clk 0:00:58]}  Rxb8 {[%clk 0:00:42]} 34. Rxb8+ {[%clk 0:00:57]}  Kh7 {[%clk 0:00:42]} 35. h3 {[%clk 0:00:57]}  Qe1+ {[%clk 0:00:36]} 36. Kh2 {[%clk 0:00:56]}  Qxf2 {[%clk 0:00:37]} 37. exf7 {[%clk 0:00:55]}  Qxc5 {[%clk 0:00:26]} 38. f8=Q {[%clk 0:00:53]}  Qxf8 {[%clk 0:00:26]} 39. Rxf8 {[%clk 0:00:52]}  d2 {[%clk 0:00:25]} 40. Rd8 {[%clk 0:00:51]}  d1=Q {[%clk 0:00:24]} 41. Rxd1 {[%clk 0:00:51]}  Bxd1 {[%clk 0:00:25]} 42. Kg3 {[%clk 0:00:51]}  Kg8 {[%clk 0:00:24]} 0-1


[Site "https://www.chess.com"]

[Event "Titled Tuesday Blitz January 17 Late 2023"]
[White "Ferriz Barrios, Andres"]
[Black "Szyszylo, Rafal"]
[WhiteFideId "5104467"]
[BlackFideId "1109626"]
[WhiteElo "2102"]
[BlackElo "2091"]
[Result "1-0"]
[Round "08"]
[TimeControl "180+2"]
[Date "2023.01.17"]
[WhiteClock "0:00:25"]
[BlackClock "0:00:24"]

1. d4 {[%clk 0:03:00]}  g6 {[%clk 0:02:58]} 2. Nc3 {[%clk 0:02:46]}  Bg7 {[%clk 0:02:58]} 3. Bf4 {[%clk 0:02:47]}  d6 {[%clk 0:02:58]} 4. e4 {[%clk 0:02:47]}  c6 {[%clk 0:02:56]} 5. Qd2 {[%clk 0:02:46]}  Nd7 {[%clk 0:02:54]} 6. Nf3 {[%clk 0:02:45]}  e5 {[%clk 0:02:51]} 7. dxe5 {[%clk 0:02:45]}  dxe5 {[%clk 0:02:50]} 8. Bg5 {[%clk 0:02:45]}  Qa5 {[%clk 0:02:48]} 9. O-O-O {[%clk 0:02:40]}  h6 {[%clk 0:02:27]} 10. Be3 {[%clk 0:02:39]}  Ngf6 {[%clk 0:02:23]} 11. h4 {[%clk 0:02:36]}  Ng4 {[%clk 0:02:21]} 12. Bc4 {[%clk 0:02:21]}  Nxe3 {[%clk 0:02:19]} 13. Qxe3 {[%clk 0:02:22]}  Nf6 {[%clk 0:02:10]} 14. Rd6 {[%clk 0:02:06]}  Ng4 {[%clk 0:01:46]} 15. Qe2 {[%clk 0:02:04]}  Bf8 {[%clk 0:01:43]} 16. Rd2 {[%clk 0:01:53]}  Bc5 {[%clk 0:01:26]} 17. Rf1 {[%clk 0:01:41]}  Bb4 {[%clk 0:01:17]} 18. Rd3 {[%clk 0:01:28]}  b5 {[%clk 0:01:01]} 19. Bb3 {[%clk 0:01:27]}  Qc7 {[%clk 0:01:01]} 20. Rfd1 {[%clk 0:01:07]}  O-O {[%clk 0:00:59]} 21. h5 {[%clk 0:01:01]}  g5 {[%clk 0:00:58]} 22. a3 {[%clk 0:00:47]}  Bc5 {[%clk 0:00:58]} 23. Rf1 {[%clk 0:00:46]}  a5 {[%clk 0:00:57]} 24. Nd1 {[%clk 0:00:46]}  a4 {[%clk 0:00:53]} 25. Ba2 {[%clk 0:00:46]}  Qe7 {[%clk 0:00:45]} 26. c3 {[%clk 0:00:40]}  Ba6 {[%clk 0:00:39]} 27. Nh4 {[%clk 0:00:27]}  gxh4 {[%clk 0:00:34]} 28. Qxg4+ {[%clk 0:00:25]}  Qg5+ {[%clk 0:00:35]} 29. Qxg5+ {[%clk 0:00:25]}  hxg5 {[%clk 0:00:35]} 30. Rf3 {[%clk 0:00:22]}  b4 {[%clk 0:00:30]} 31. Rh1 {[%clk 0:00:21]}  b3 {[%clk 0:00:30]} 32. Bb1 {[%clk 0:00:20]}  f6 {[%clk 0:00:28]} 33. g3 {[%clk 0:00:18]}  Be2 {[%clk 0:00:22]} 34. Rd3 {[%clk 0:00:17]}  Bxd3 {[%clk 0:00:21]} 35. Bxd3 {[%clk 0:00:18]}  hxg3 {[%clk 0:00:20]} 36. fxg3 {[%clk 0:00:19]}  Kg7 {[%clk 0:00:18]} 37. h6+ {[%clk 0:00:19]}  Kg6 {[%clk 0:00:16]} 38. Bc4 {[%clk 0:00:19]}  Rh8 {[%clk 0:00:16]} 39. Be6 {[%clk 0:00:20]}  Rxh6 {[%clk 0:00:16]} 40. Bf5+ {[%clk 0:00:20]}  Kg7 {[%clk 0:00:17]} 41. Rf1 {[%clk 0:00:21]}  Rd8 {[%clk 0:00:16]} 42. g4 {[%clk 0:00:21]}  Rh2 {[%clk 0:00:15]} 43. Be6 {[%clk 0:00:13]}  Rc2+ {[%clk 0:00:15]} 44. Kb1 {[%clk 0:00:13]}  Rdd2 {[%clk 0:00:16]} 45. Bc4 {[%clk 0:00:11]}  Rh2 {[%clk 0:00:15]} 46. Ba6 {[%clk 0:00:11]}  Rcd2 {[%clk 0:00:14]} 47. Bb7 {[%clk 0:00:11]}  Bf2 {[%clk 0:00:12]} 48. Bxc6 {[%clk 0:00:10]}  Bg3 {[%clk 0:00:12]} 49. Bxa4 {[%clk 0:00:10]}  Bf4 {[%clk 0:00:11]} 50. Bxb3 {[%clk 0:00:10]}  Rde2 {[%clk 0:00:10]} 51. Bc4 {[%clk 0:00:10]}  Rd2 {[%clk 0:00:10]} 52. Bd5 {[%clk 0:00:10]}  Kf8 {[%clk 0:00:09]} 53. a4 {[%clk 0:00:11]}  Ke7 {[%clk 0:00:10]} 54. a5 {[%clk 0:00:11]}  Kd6 {[%clk 0:00:11]} 55. a6 {[%clk 0:00:12]}  Rh7 {[%clk 0:00:10]} 56. a7 {[%clk 0:00:12]}  Rxa7 {[%clk 0:00:11]} 57. c4 {[%clk 0:00:11]}  Rh7 {[%clk 0:00:09]} 58. Nc3 {[%clk 0:00:12]}  Kc5 {[%clk 0:00:09]} 59. Na4+ {[%clk 0:00:12]}  Kd4 {[%clk 0:00:09]} 60. Nc3 {[%clk 0:00:13]}  Kd3 {[%clk 0:00:09]} 61. Rd1 {[%clk 0:00:13]}  Rh2 {[%clk 0:00:10]} 62. Rxd2+ {[%clk 0:00:13]}  Rxd2 {[%clk 0:00:11]} 63. c5 {[%clk 0:00:13]}  Kd4 {[%clk 0:00:10]} 64. c6 {[%clk 0:00:14]}  Rh2 {[%clk 0:00:11]} 65. c7 {[%clk 0:00:14]}  Rh8 {[%clk 0:00:11]} 66. Be6 {[%clk 0:00:15]}  Bd2 {[%clk 0:00:11]} 67. c8=Q {[%clk 0:00:14]}  Rxc8 {[%clk 0:00:11]} 68. Bxc8 {[%clk 0:00:14]}  Bxc3 {[%clk 0:00:12]} 69. bxc3+ {[%clk 0:00:14]}  Kxc3 {[%clk 0:00:13]} 70. Bf5 {[%clk 0:00:14]}  Kd3 {[%clk 0:00:14]} 71. Kb2 {[%clk 0:00:15]}  Kc4 {[%clk 0:00:14]} 72. Kc2 {[%clk 0:00:15]}  Kd4 {[%clk 0:00:15]} 73. Kb3 {[%clk 0:00:16]}  Kc5 {[%clk 0:00:15]} 74. Kc3 {[%clk 0:00:17]}  Kb5 {[%clk 0:00:15]} 75. Kd3 {[%clk 0:00:17]}  Kc5 {[%clk 0:00:16]} 76. Kc3 {[%clk 0:00:17]}  Kb5 {[%clk 0:00:17]} 77. Be6 {[%clk 0:00:17]}  Kc5 {[%clk 0:00:18]} 78. Bd5 {[%clk 0:00:18]}  f5 {[%clk 0:00:17]} 79. gxf5 {[%clk 0:00:18]}  g4 {[%clk 0:00:17]} 80. f6 {[%clk 0:00:18]}  Kd6 {[%clk 0:00:16]} 81. f7 {[%clk 0:00:18]}  Ke7 {[%clk 0:00:16]} 82. Kd2 {[%clk 0:00:18]}  g3 {[%clk 0:00:16]} 83. Ke2 {[%clk 0:00:18]}  g2 {[%clk 0:00:17]} 84. Kf2 {[%clk 0:00:19]}  g1=Q+ {[%clk 0:00:18]} 85. Kxg1 {[%clk 0:00:19]}  Kf8 {[%clk 0:00:18]} 86. Kg2 {[%clk 0:00:20]}  Ke7 {[%clk 0:00:19]} 87. Kg3 {[%clk 0:00:21]}  Kf8 {[%clk 0:00:20]} 88. Kg4 {[%clk 0:00:22]}  Ke7 {[%clk 0:00:21]} 89. Kf5 {[%clk 0:00:23]}  Kf8 {[%clk 0:00:21]} 90. Kxe5 {[%clk 0:00:23]}  Ke7 {[%clk 0:00:22]} 91. Kf5 {[%clk 0:00:24]}  Kf8 {[%clk 0:00:23]} 92. e5 {[%clk 0:00:25]}  Ke7 {[%clk 0:00:24]} 93. Bb3 {[%clk 0:00:25]}  Kf8 {[%clk 0:00:25]} 94. Kg6 {[%clk 0:00:24]}  Ke7 {[%clk 0:00:26]} 95. Kg7 {[%clk 0:00:25]}  Kd7 {[%clk 0:00:24]} 96. f8=Q {[%clk 0:00:25]} 1-0


[Site "https://www.chess.com"]

[Event "Titled Tuesday Blitz January 17 Late 2023"]
[White "Stachanczyk, Jacek"]
[Black "Almedina Ortiz, Edgardo J."]
[WhiteFideId "1116657"]
[BlackFideId "3100197"]
[WhiteElo "2147"]
[BlackElo "2156"]
[Result "1-0"]
[Round "08"]
[TimeControl "180+2"]
[Date "2023.01.17"]
[WhiteClock "0:00:33"]
[BlackClock "0:00:24"]

1. e4 {[%clk 0:02:55]}  c5 {[%clk 0:02:59]} 2. Nf3 {[%clk 0:02:54]}  e6 {[%clk 0:02:59]} 3. d4 {[%clk 0:02:53]}  cxd4 {[%clk 0:03:00]} 4. Nxd4 {[%clk 0:02:54]}  Nc6 {[%clk 0:02:59]} 5. Nc3 {[%clk 0:02:48]}  Qc7 {[%clk 0:02:58]} 6. Nxc6 {[%clk 0:02:43]}  bxc6 {[%clk 0:02:55]} 7. Qf3 {[%clk 0:02:44]}  d5 {[%clk 0:02:38]} 8. b3 {[%clk 0:02:36]}  Nf6 {[%clk 0:02:33]} 9. Bb2 {[%clk 0:02:30]}  Be7 {[%clk 0:02:32]} 10. O-O-O {[%clk 0:02:30]}  O-O {[%clk 0:02:32]} 11. Kb1 {[%clk 0:02:26]}  a5 {[%clk 0:02:31]} 12. Bd3 {[%clk 0:02:21]}  Ba6 {[%clk 0:02:29]} 13. h4 {[%clk 0:02:12]}  Bxd3 {[%clk 0:02:26]} 14. Rxd3 {[%clk 0:02:13]}  a4 {[%clk 0:02:19]} 15. e5 {[%clk 0:02:08]}  Nd7 {[%clk 0:02:16]} 16. Nxa4 {[%clk 0:02:02]}  Rfb8 {[%clk 0:02:05]} 17. Qg3 {[%clk 0:01:50]}  c5 {[%clk 0:01:44]} 18. Nc3 {[%clk 0:01:30]}  c4 {[%clk 0:01:40]} 19. Rf3 {[%clk 0:01:04]}  Qxe5 {[%clk 0:01:23]} 20. Nxd5 {[%clk 0:00:57]}  Qxg3 {[%clk 0:01:13]} 21. Nxe7+ {[%clk 0:00:48]}  Kf8 {[%clk 0:01:13]} 22. Rxg3 {[%clk 0:00:49]}  Kxe7 {[%clk 0:01:11]} 23. Rxg7 {[%clk 0:00:49]}  cxb3 {[%clk 0:01:09]} 24. axb3 {[%clk 0:00:49]}  h6 {[%clk 0:00:57]} 25. Rh7 {[%clk 0:00:44]}  Rg8 {[%clk 0:00:47]} 26. g3 {[%clk 0:00:44]}  Rg6 {[%clk 0:00:37]} 27. h5 {[%clk 0:00:44]}  Rg5 {[%clk 0:00:35]} 28. Rxh6 {[%clk 0:00:42]}  Rf5 {[%clk 0:00:35]} 29. Rh8 {[%clk 0:00:33]}  Rxh8 {[%clk 0:00:27]} 30. Bxh8 {[%clk 0:00:33]}  f6 {[%clk 0:00:25]} 31. h6 {[%clk 0:00:33]}  Kf7 {[%clk 0:00:24]} 32. h7 {[%clk 0:00:33]} 1-0


[Site "https://www.chess.com"]

[Event "Titled Tuesday Blitz January 17 Late 2023"]
[White "Kalajzic, Ivan"]
[Black "Batista, Renato Luiz"]
[WhiteFideId "14506378"]
[BlackFideId "2106540"]
[WhiteElo "2062"]
[BlackElo "2174"]
[Result "1-0"]
[Round "08"]
[TimeControl "180+2"]
[Date "2023.01.17"]
[WhiteClock "0:01:18"]
[BlackClock "0:01:38"]

1. c4 {[%clk 0:02:51]}  Nf6 {[%clk 0:02:52]} 2. Nc3 {[%clk 0:02:51]}  c5 {[%clk 0:02:53]} 3. g3 {[%clk 0:02:49]}  g6 {[%clk 0:02:53]} 4. Bg2 {[%clk 0:02:49]}  Bg7 {[%clk 0:02:53]} 5. d3 {[%clk 0:02:50]}  Kf8 {[%clk 0:02:53]} 6. e4 {[%clk 0:02:49]}  d6 {[%clk 0:02:52]} 7. Nge2 {[%clk 0:02:49]}  Nc6 {[%clk 0:02:52]} 8. O-O {[%clk 0:02:49]}  h6 {[%clk 0:02:52]} 9. a3 {[%clk 0:02:50]}  Bd7 {[%clk 0:02:51]} 10. Rb1 {[%clk 0:02:50]}  Rb8 {[%clk 0:02:51]} 11. b4 {[%clk 0:02:50]}  b6 {[%clk 0:02:51]} 12. b5 {[%clk 0:02:45]}  Nd4 {[%clk 0:02:51]} 13. Nxd4 {[%clk 0:02:44]}  cxd4 {[%clk 0:02:51]} 14. Nd5 {[%clk 0:02:45]}  e5 {[%clk 0:02:49]} 15. f4 {[%clk 0:02:38]}  Nxd5 {[%clk 0:02:49]} 16. exd5 {[%clk 0:02:37]}  Kg8 {[%clk 0:02:42]} 17. a4 {[%clk 0:02:28]}  Kh7 {[%clk 0:02:40]} 18. fxe5 {[%clk 0:02:22]}  dxe5 {[%clk 0:02:19]} 19. Rxf7 {[%clk 0:02:21]}  Rf8 {[%clk 0:02:19]} 20. Qf3 {[%clk 0:02:13]}  Bf5 {[%clk 0:02:07]} 21. Rxf8 {[%clk 0:02:09]}  Qxf8 {[%clk 0:02:08]} 22. Bd2 {[%clk 0:01:58]}  Qa3 {[%clk 0:02:06]} 23. Bf1 {[%clk 0:01:52]}  e4 {[%clk 0:02:03]} 24. Qf4 {[%clk 0:01:47]}  e3 {[%clk 0:02:00]} 25. Be1 {[%clk 0:01:28]}  Rf8 {[%clk 0:01:54]} 26. Bb4 {[%clk 0:01:24]}  Qa2 {[%clk 0:01:43]} 27. Bxf8 {[%clk 0:01:20]}  Qxb1 {[%clk 0:01:39]} 28. Bxg7 {[%clk 0:01:19]}  e2 {[%clk 0:01:39]} 29. Qxh6+ {[%clk 0:01:19]}  Kg8 {[%clk 0:01:38]} 30. Qh8+ {[%clk 0:01:18]}  Kf7 {[%clk 0:01:38]} 31. Qf8# {[%clk 0:01:18]} 1-0


[Site "https://www.chess.com"]

[Event "Titled Tuesday Blitz January 17 Late 2023"]
[White "Sabar, Ethmane Daouda"]
[Black "Rian, Kapriaga"]
[WhiteFideId "19600097"]
[BlackFideId "7103263"]
[WhiteElo "2040"]
[BlackElo "2089"]
[Result "0-1"]
[Round "08"]
[TimeControl "180+2"]
[Date "2023.01.17"]
[WhiteClock "0:00:08"]
[BlackClock "0:01:10"]

1. e4 {[%clk 0:02:56]}  c6 {[%clk 0:02:59]} 2. d4 {[%clk 0:02:48]}  d5 {[%clk 0:02:58]} 3. Nc3 {[%clk 0:02:49]}  dxe4 {[%clk 0:02:58]} 4. Nxe4 {[%clk 0:02:50]}  Bf5 {[%clk 0:02:57]} 5. Ng3 {[%clk 0:02:50]}  Bg6 {[%clk 0:02:57]} 6. Nf3 {[%clk 0:02:48]}  Nd7 {[%clk 0:02:57]} 7. h4 {[%clk 0:02:48]}  h6 {[%clk 0:02:56]} 8. h5 {[%clk 0:02:48]}  Bh7 {[%clk 0:02:56]} 9. Bd3 {[%clk 0:02:49]}  Bxd3 {[%clk 0:02:56]} 10. Qxd3 {[%clk 0:02:50]}  e6 {[%clk 0:02:56]} 11. Bd2 {[%clk 0:02:47]}  Ngf6 {[%clk 0:02:56]} 12. O-O-O {[%clk 0:02:45]}  Be7 {[%clk 0:02:55]} 13. Kb1 {[%clk 0:02:26]}  O-O {[%clk 0:02:55]} 14. Ne4 {[%clk 0:02:15]}  c5 {[%clk 0:02:54]} 15. dxc5 {[%clk 0:02:03]}  Nxc5 {[%clk 0:02:50]} 16. Qxd8 {[%clk 0:02:00]}  Rfxd8 {[%clk 0:02:47]} 17. Nxf6+ {[%clk 0:01:45]}  Bxf6 {[%clk 0:02:46]} 18. Be3 {[%clk 0:01:45]}  Na4 {[%clk 0:02:35]} 19. Bd4 {[%clk 0:01:34]}  Bxd4 {[%clk 0:02:19]} 20. Rxd4 {[%clk 0:01:34]}  Rxd4 {[%clk 0:02:18]} 21. Nxd4 {[%clk 0:01:35]}  Rd8 {[%clk 0:02:17]} 22. c3 {[%clk 0:01:33]}  Rd5 {[%clk 0:02:11]} 23. Kc2 {[%clk 0:01:23]}  Nc5 {[%clk 0:02:04]} 24. f3 {[%clk 0:01:09]}  Nd7 {[%clk 0:01:55]} 25. f4 {[%clk 0:01:03]}  Nf6 {[%clk 0:01:53]} 26. Kd3 {[%clk 0:00:38]}  Rxh5 {[%clk 0:01:44]} 27. Rxh5 {[%clk 0:00:37]}  Nxh5 {[%clk 0:01:44]} 28. Ke4 {[%clk 0:00:29]}  Kf8 {[%clk 0:01:40]} 29. Nb5 {[%clk 0:00:26]}  a6 {[%clk 0:01:39]} 30. Nd6 {[%clk 0:00:26]}  b6 {[%clk 0:01:34]} 31. Nc8 {[%clk 0:00:22]}  Nf6+ {[%clk 0:01:32]} 32. Ke5 {[%clk 0:00:20]}  b5 {[%clk 0:01:26]} 33. Kd6 {[%clk 0:00:15]}  Nd5 {[%clk 0:01:22]} 34. g3 {[%clk 0:00:14]}  Nf6 {[%clk 0:01:22]} 35. b3 {[%clk 0:00:08]}  Ne4+ {[%clk 0:01:20]} 36. Kc6 {[%clk 0:00:07]}  Nxc3 {[%clk 0:01:19]} 37. Kb6 {[%clk 0:00:07]}  Nxa2 {[%clk 0:01:19]} 38. Kxa6 {[%clk 0:00:08]}  b4 {[%clk 0:01:17]} 39. Kb5 {[%clk 0:00:08]}  h5 {[%clk 0:01:15]} 40. Na7 {[%clk 0:00:04]}  f6 {[%clk 0:01:13]} 41. Nc6 {[%clk 0:00:04]}  g5 {[%clk 0:01:13]} 42. fxg5 {[%clk 0:00:04]}  fxg5 {[%clk 0:01:13]} 43. Nxb4 {[%clk 0:00:04]}  Nxb4 {[%clk 0:01:10]} 44. Kxb4 {[%clk 0:00:05]}  h4 {[%clk 0:01:10]} 45. gxh4 {[%clk 0:00:04]}  gxh4 {[%clk 0:01:11]} 46. Kc3 {[%clk 0:00:05]}  h3 {[%clk 0:01:11]} 47. b4 {[%clk 0:00:06]}  h2 {[%clk 0:01:11]} 48. b5 {[%clk 0:00:07]}  h1=Q {[%clk 0:01:11]} 49. b6 {[%clk 0:00:08]}  Qc6+ {[%clk 0:01:10]} 0-1


[Site "https://www.chess.com"]

[Event "Titled Tuesday Blitz January 17 Late 2023"]
[White "Papp, Petra"]
[Black "Quinones Garcia, Santiago"]
[WhiteFideId "739049"]
[BlackFideId "4408497"]
[WhiteElo "2343"]
[BlackElo "2248"]
[Result "0-1"]
[Round "08"]
[TimeControl "180+2"]
[Date "2023.01.17"]
[WhiteClock "0:00:50"]
[BlackClock "0:01:00"]

1. e4 {[%clk 0:03:00]}  e5 {[%clk 0:02:55]} 2. f4 {[%clk 0:03:00]}  exf4 {[%clk 0:02:52]} 3. Nf3 {[%clk 0:03:00]}  d5 {[%clk 0:02:52]} 4. exd5 {[%clk 0:03:00]}  Qxd5 {[%clk 0:02:51]} 5. Nc3 {[%clk 0:03:00]}  Qd8 {[%clk 0:02:50]} 6. Bc4 {[%clk 0:02:59]}  Nf6 {[%clk 0:02:50]} 7. O-O {[%clk 0:02:58]}  Bc5+ {[%clk 0:02:49]} 8. d4 {[%clk 0:02:58]}  Bb6 {[%clk 0:02:49]} 9. Bxf4 {[%clk 0:02:56]}  Nc6 {[%clk 0:02:47]} 10. Ne2 {[%clk 0:02:50]}  O-O {[%clk 0:02:37]} 11. c3 {[%clk 0:02:50]}  h6 {[%clk 0:02:38]} 12. Ne5 {[%clk 0:02:44]}  Nxe5 {[%clk 0:02:12]} 13. Bxe5 {[%clk 0:02:45]}  Nd5 {[%clk 0:02:08]} 14. Qd3 {[%clk 0:02:40]}  c6 {[%clk 0:02:06]} 15. Nf4 {[%clk 0:02:30]}  Re8 {[%clk 0:01:43]} 16. Nxd5 {[%clk 0:02:01]}  cxd5 {[%clk 0:01:42]} 17. Bb3 {[%clk 0:01:57]}  Rxe5 {[%clk 0:01:42]} 18. Bc2 {[%clk 0:01:51]}  f5 {[%clk 0:01:36]} 19. Kh1 {[%clk 0:01:34]}  Re4 {[%clk 0:01:35]} 20. Qf3 {[%clk 0:01:32]}  Be6 {[%clk 0:01:31]} 21. Bxe4 {[%clk 0:01:31]}  dxe4 {[%clk 0:01:32]} 22. Qg3 {[%clk 0:01:29]}  Bc7 {[%clk 0:01:30]} 23. Qg6 {[%clk 0:01:28]}  Bd7 {[%clk 0:01:20]} 24. Rxf5 {[%clk 0:01:16]}  Bxf5 {[%clk 0:01:18]} 25. Qxf5 {[%clk 0:01:17]}  Qe7 {[%clk 0:01:17]} 26. Re1 {[%clk 0:01:16]}  e3 {[%clk 0:01:17]} 27. d5 {[%clk 0:01:11]}  Re8 {[%clk 0:01:16]} 28. Qd3 {[%clk 0:01:10]}  e2 {[%clk 0:01:13]} 29. d6 {[%clk 0:01:07]}  Bxd6 {[%clk 0:01:11]} 30. c4 {[%clk 0:01:05]}  Rf8 {[%clk 0:01:08]} 31. h3 {[%clk 0:00:54]}  Re8 {[%clk 0:01:03]} 32. a3 {[%clk 0:00:52]}  Kh8 {[%clk 0:01:01]} 33. b4 {[%clk 0:00:50]}  Qe5 {[%clk 0:01:00]} 0-1


[Site "https://www.chess.com"]

[Event "Titled Tuesday Blitz January 17 Late 2023"]
[White "Abdyzhaparov, Aidar"]
[Black "Guevara Sanchez, Erick Marvin"]
[WhiteFideId "13800361"]
[BlackFideId "6700136"]
[WhiteElo "1978"]
[BlackElo "2073"]
[Result "1-0"]
[Round "08"]
[TimeControl "180+2"]
[Date "2023.01.17"]
[WhiteClock "0:02:13"]
[BlackClock "0:00:57"]

1. Nf3 {[%clk 0:02:56]}  c5 {[%clk 0:02:58]} 2. c4 {[%clk 0:02:57]}  Nc6 {[%clk 0:02:57]} 3. d4 {[%clk 0:02:57]}  cxd4 {[%clk 0:02:57]} 4. Nxd4 {[%clk 0:02:58]}  g6 {[%clk 0:02:56]} 5. e4 {[%clk 0:02:58]}  Bg7 {[%clk 0:02:54]} 6. Be3 {[%clk 0:02:58]}  Nf6 {[%clk 0:02:53]} 7. Nc3 {[%clk 0:02:58]}  Ng4 {[%clk 0:02:52]} 8. Qxg4 {[%clk 0:02:55]}  Nxd4 {[%clk 0:02:51]} 9. Qd1 {[%clk 0:02:55]}  e5 {[%clk 0:02:49]} 10. Bd3 {[%clk 0:02:55]}  O-O {[%clk 0:02:47]} 11. h4 {[%clk 0:02:55]}  h5 {[%clk 0:02:41]} 12. Qd2 {[%clk 0:02:52]}  Re8 {[%clk 0:02:35]} 13. O-O-O {[%clk 0:02:51]}  d6 {[%clk 0:02:34]} 14. Nd5 {[%clk 0:02:51]}  Be6 {[%clk 0:02:30]} 15. Bg5 {[%clk 0:02:51]}  Qc8 {[%clk 0:02:22]} 16. Nf6+ {[%clk 0:02:46]}  Kh8 {[%clk 0:02:18]} 17. Nxe8 {[%clk 0:02:43]}  Bxc4 {[%clk 0:01:42]} 18. Nxd6 {[%clk 0:02:22]}  Bxa2+ {[%clk 0:01:39]} 19. Nxc8 {[%clk 0:02:22]}  Rxc8+ {[%clk 0:01:38]} 20. Qc3 {[%clk 0:02:18]}  Nb3+ {[%clk 0:01:01]} 21. Kc2 {[%clk 0:02:17]}  Nd4+ {[%clk 0:00:57]} 22. Kd2 {[%clk 0:02:13]} 1-0


[Site "https://www.chess.com"]